bitfinex/quotes_ETHUSD_20250925
["timestamp","ask_amount","ask_price","bid_price","bid_amount"]
[1758764415345,2.43748705,4102.6,4101.7,2.43801037]
[1758764415539,4.681,4102.5,4101.1,0.4592]
[1758764415766,3.0,4102.4,4101.1,0.4592]
[1758764416151,4.681,4102.5,4101.1,0.4592]
[1758764416351,4.681,4102.5,4100.5,2.43871156]
[1758764416352,0.792,4101.7,4100.5,2.43871156]
[1758764416559,3.792,4101.7,4100.4,2.032]
[1758764416873,3.792,4101.7,4101.1,2.43836935]
[1758764417085,3.792,4101.7,4100.2,2.032]
[1758764417385,3.0,4102.1,4100.3,0.4592]
[1758764417681,4.672,4102.0,4101.6,2.43802533]
[1758764417891,3.0,4101.9,4101.5,2.4381091]
[1758764418085,3.0,4101.9,4101.4,2.43819183]
[1758764418086,0.1216,4101.5,4101.4,2.43819183]
[1758764418677,0.1216,4101.5,4101.4,2.89739183]
[1758764419450,0.1216,4101.5,4101.4,2.43819183]
[1758764419773,0.1216,4101.5,4100.9,0.5808]
[1758764419941,0.1216,4101.5,4101.0,6.699]
[1758764420145,0.1216,4101.5,4101.4,2.43819183]
[1758764420340,0.1216,4101.5,4100.9,0.1216]
[1758764420640,0.1216,4101.2,4101.1,2.43837019]
[1758764420843,0.1216,4101.2,4100.9,2.43845812]
[1758764421088,0.1216,4101.2,4100.7,2.43860804]
[1758764421298,0.1216,4101.2,4100.8,0.4592]
[1758764421591,0.1216,4101.2,4101.0,2.43842965]
[1758764421888,0.1216,4101.2,4101.1,2.46275389]
[1758764422387,0.1216,4101.2,4101.1,2.43837019]
[1758764422597,0.1216,4101.2,4101.1,2.89757019]
[1758764422750,0.1216,4101.2,4099.6,0.002]
[1758764422945,0.1216,4100.9,4100.2,0.1216]
[1758764423171,0.1216,4100.9,4100.8,2.43854857]
[1758764423755,0.792,4101.3,4100.6,2.43866513]
[1758764423756,0.1216,4101.3,4100.6,0.1216]
[1758764423958,0.4317,4101.9,4101.2,2.43827311]
[1758764424246,3.792,4101.8,4100.7,2.43860804]
[1758764424577,3.792,4101.8,4100.5,1.583]
[1758764424578,3.792,4101.8,4100.8,0.02438548]
[1758764424781,3.792,4101.8,4101.4,2.43815549]
[1758764424968,0.4317,4102.4,4100.8,0.02438548]
[1758764425179,5.0767,4102.4,4101.5,2.43811166]
[1758764425696,0.792,4102.3,4102.0,2.4377803]
[1758764425986,4.645,4102.4,4102.2,2.43771634]
[1758764426295,4.645,4102.4,4101.4,2.43819183]
[1758764426501,2.031,4102.6,4101.3,0.4592]
[1758764426502,2.031,4102.6,4101.5,0.02438132]
[1758764426648,0.792,4102.5,4101.6,0.02438072]
[1758764426996,4.638,4102.9,4101.7,0.4592]
[1758764427148,4.638,4102.9,4102.2,2.43767308]
[1758764427592,0.792,4102.8,4101.7,0.4592]
[1758764427794,0.792,4102.8,4102.5,2.43750509]
[1758764427954,0.792,4102.8,4101.8,2.43795406]
[1758764428302,3.001,4103.0,4102.9,2.43730044]
[1758764428303,0.001,4103.0,4102.9,2.43730044]
[1758764431380,0.001,4103.0,4102.9,2.89650044]
[1758764432415,0.792,4101.2,4099.0,2.44082714]
[1758764432716,3.792,4101.0,4099.5,0.4592]
[1758764432902,0.792,4101.0,4100.0,0.002]
[1758764433781,0.792,4100.5,4100.0,0.002]
[1758764434210,3.792,4100.6,4100.0,0.002]
[1758764434524,3.23067681,4100.6,4100.0,0.002]
[1758764434696,0.792,4100.6,4100.0,0.002]
[1758764435097,6.23066943,4100.6,4100.0,0.002]
[1758764435620,3.792,4100.6,4100.0,0.002]
[1758764436183,6.23067354,4100.6,4100.0,0.002]
[1758764436518,3.792,4100.6,4100.0,0.002]
[1758764436722,3.792,4100.6,4100.0,2.44097993]
[1758764437048,3.792,4100.6,4100.0,2.44101273]
[1758764437252,3.792,4100.6,4100.2,2.4388893]
[1758764437429,3.792,4100.6,4100.2,2.43889248]
[1758764437633,3.792,4100.6,4100.1,2.43895243]
[1758764438033,3.792,4100.6,4100.0,0.002]
[1758764438034,0.1216,4100.1,4100.0,0.002]
[1758764439428,0.1216,4100.1,4100.0,2.44102439]
[1758764439759,0.1216,4100.1,4100.0,0.002]
[1758764439956,0.1216,4100.1,4100.0,2.44102439]
[1758764440155,0.1216,4100.1,4100.0,0.5143749]
[1758764440458,0.1216,4100.1,4100.0,2.44102439]
[1758764441028,0.0716,4100.1,4100.0,2.44102439]
[1758764441227,0.0716,4100.1,4100.0,0.002]
[1758764441627,0.0716,4100.1,4100.0,2.44102439]
[1758764442024,0.0716,4100.1,4100.0,0.002]
[1758764442644,0.0716,4100.1,4100.0,2.44102439]
[1758764443278,0.0716,4100.1,4100.0,0.002]
[1758764443565,0.0716,4100.1,4100.0,2.44102439]
[1758764444069,0.0716,4100.1,4100.0,3.14362439]
[1758764444688,0.0716,4100.1,4100.0,3.70433968]
[1758764445450,3.0,4101.5,4100.0,1.26531529]
[1758764445686,0.1216,4100.8,4100.1,0.3608]
[1758764445888,0.1216,4100.8,4100.7,2.43860804]
[1758764446583,0.1216,4100.8,4100.7,2.9263373]
[1758764446785,4.2141,4102.3,4100.7,1.19032926]
[1758764446984,4.2141,4102.3,4101.6,2.4380249]
[1758764447149,4.2141,4102.3,4101.1,0.2392]
[1758764447485,4.2141,4102.3,4101.9,2.43784441]
[1758764447789,0.792,4102.1,4102.0,2.43779381]
[1758764447950,3.6573,4102.2,4101.1,0.77086]
[1758764448306,0.2261,4102.1,4101.2,2.43828774]
[1758764448449,0.2261,4102.0,4101.6,2.43805823]
[1758764448650,0.792,4101.8,4101.7,2.4380099]
[1758764449288,3.0,4102.5,4101.0,4.612]
[1758764449471,3.2261,4102.6,4102.1,2.43777545]
[1758764449673,1.0181,4102.5,4102.0,2.4378189]
[1758764449865,0.2261,4102.4,4101.2,0.7026]
[1758764450063,0.2261,4102.4,4101.3,5.88318]
[1758764450276,3.0,4102.6,4101.4,2.43819183]
[1758764450491,3.0,4102.6,4101.4,0.26358191]
[1758764450690,3.0,4102.6,4101.4,4.608]
[1758764450691,0.792,4102.3,4101.4,4.608]
[1758764450892,0.792,4102.1,4101.8,2.43791227]
[1758764451062,1.0181,4102.0,4101.9,2.43788945]
[1758764451275,0.792,4102.0,4101.9,2.43788945]
[1758764451579,0.792,4102.0,4101.4,4.608]
[1758764451580,0.792,4102.0,4101.6,2.43807294]
[1758764451889,0.792,4101.7,4100.5,4.603]
[1758764452109,0.792,4101.5,4101.1,2.43836998]
[1758764452475,0.792,4101.3,4101.1,2.43836998]
[1758764452676,0.2261,4101.5,4100.9,2.43848201]
[1758764453012,0.792,4101.4,4101.2,2.43827039]
[1758764453211,0.792,4101.7,4101.1,2.43835935]
[1758764453375,0.792,4101.5,4100.5,4.8392]
[1758764453715,0.792,4101.5,4101.3,2.4382446]
[1758764454015,0.792,4101.9,4101.3,0.2392]
[1758764454188,3.792,4101.9,4101.0,2.43842965]
[1758764454508,3.792,4101.9,4101.4,2.43817975]
[1758764454713,0.792,4101.7,4101.4,2.43817975]
[1758764455089,0.792,4101.7,4101.5,2.43812915]
[1758764455286,0.792,4101.7,4100.9,2.67764298]
[1758764455476,0.792,4101.5,4100.4,0.2392]
[1758764455681,0.792,4101.5,4100.9,2.43844155]
[1758764455978,0.792,4101.5,4101.1,2.43836114]
[1758764456196,0.792,4101.3,4101.1,2.43836114]
[1758764456406,0.792,4101.3,4101.2,2.43831073]
[1758764456611,3.2261,4101.9,4101.0,0.02438429]
[1758764456804,0.792,4101.8,4101.4,2.43817266]
[1758764457004,0.792,4101.8,4101.5,2.43811694]
[1758764457326,0.1216,4101.5,4101.4,2.43817659]
[1758764457489,3.792,4101.8,4101.4,2.43817659]
[1758764457696,3.792,4101.8,4101.5,2.43812107]
[1758764458011,0.1216,4101.2,4101.1,2.43837019]
[1758764458214,0.1216,4101.2,4101.1,2.92605241]
[1758764458597,0.1216,4101.2,4101.1,3.62865241]
[1758764459593,0.001,4102.0,4101.9,2.43789463]
[1758764459796,0.001,4102.0,4101.9,7.14449463]
[1758764459992,0.001,4102.0,4101.9,10.8387801]
[1758764461010,0.001,4102.0,4099.5,0.2313]
[1758764461211,0.792,4101.8,4100.7,2.43859366]
[1758764461518,0.792,4101.6,4100.6,2.43866751]
[1758764461705,0.792,4101.6,4100.8,2.43854269]
[1758764461886,0.792,4101.4,4100.3,0.25568845]
[1758764462087,0.792,4101.4,4101.2,2.43826224]
[1758764462287,0.792,4101.8,4101.2,0.4645]
[1758764462582,0.001,4102.0,4101.2,0.29029891]
[1758764462832,0.001,4102.0,4101.0,0.2313]
[1758764463368,0.001,4102.0,4101.1,0.4645]
[1758764463503,0.001,4102.0,4101.7,2.43795507]
[1758764463891,0.001,4102.0,4101.8,2.43793523]
[1758764464191,0.001,4102.0,4101.2,2.43831073]
[1758764464392,0.001,4102.0,4101.7,2.43800267]
[1758764464742,0.001,4102.0,4101.5,2.43810309]
[1758764464901,0.001,4102.0,4101.2,0.31341107]
[1758764465225,4.87578926,4101.9,4099.7,2.43914826]
[1758764465441,3.792,4100.8,4099.0,0.2325197]
[1758764465590,3.792,4100.6,4099.7,2.43920258]
[1758764465794,3.792,4100.6,4099.9,2.43908262]
[1758764466329,0.792,4100.4,4099.8,2.43913705]
[1758764466696,5.43868479,4100.6,4099.5,2.43931841]
[1758764466697,0.792,4100.2,4099.5,2.43931841]
[1758764467038,0.792,4100.2,4099.9,2.4390347]
[1758764467333,0.792,4100.2,4100.0,2.4410233]
[1758764467636,0.792,4100.8,4100.0,0.24610347]
[1758764467935,0.792,4100.8,4100.2,2.43885011]
[1758764468103,0.792,4100.8,4100.2,2.43889005]
[1758764468305,0.792,4100.8,4100.0,2.44099751]
[1758764468306,3.792,4100.8,4100.0,0.002]
[1758764468494,0.792,4100.4,4100.0,0.002]
[1758764469047,0.792,4100.2,4100.0,0.002]
[1758764469336,0.2447,4100.3,4099.0,0.0012197]
[1758764469337,3.0,4100.0,4099.0,0.0012197]
[1758764469493,0.792,4099.6,4099.0,0.0012197]
[1758764469698,5.823,4099.6,4099.0,0.0012197]
[1758764469891,3.792,4099.4,4099.0,0.0012197]
[1758764470092,0.792,4099.2,4099.0,0.0012197]
[1758764470295,0.792,4099.2,4099.1,2.4395599]
[1758764470504,0.792,4099.2,4099.0,0.0012197]
[1758764470704,0.792,4099.2,4099.0,2.4408224]
[1758764470937,0.792,4099.2,4099.1,2.4395599]
[1758764471118,0.792,4099.2,4099.0,0.0012197]
[1758764471510,0.792,4099.2,4099.1,2.4395599]
[1758764471712,0.792,4099.2,4099.0,0.0012197]
[1758764472252,0.792,4099.2,4099.1,2.4395599]
[1758764472534,0.792,4099.2,4099.1,2.4415599]
[1758764472901,8.487,4099.3,4099.2,2.43950039]
[1758764473322,3.9136,4099.2,4099.1,2.4415599]
[1758764473529,4.142,4099.2,4099.1,0.002]
[1758764473736,4.5911,4099.2,4099.1,0.002]
[1758764474976,6.90900039,4099.2,4099.1,0.002]
[1758764475178,4.4695,4099.2,4099.1,0.002]
[1758764475974,0.792,4099.2,4099.1,0.002]
[1758764476176,2.824,4099.2,4099.1,2.4415599]
[1758764476361,10.243,4099.2,4099.1,2.4415599]
[1758764476566,8.478,4099.2,4099.1,2.4415599]
[1758764476882,7.685,4099.2,4099.1,2.4415599]
[1758764477637,0.2284,4100.1,4099.2,2.43950039]
[1758764477837,0.2284,4100.1,4100.0,2.43902439]
[1758764478037,7.684,4100.0,4099.9,2.43908388]
[1758764478241,2.032,4100.2,4099.5,2.43926562]
[1758764478441,0.2284,4100.9,4099.6,0.24392656]
[1758764478676,4.225,4100.8,4099.9,2.4390536]
[1758764478877,4.225,4100.8,4100.6,2.43861108]
[1758764479043,4.225,4100.8,4100.7,2.43860804]
[1758764479239,3.0,4100.7,4100.1,2.4389649]
[1758764479438,3.0,4100.7,4099.7,0.2496]
[1758764479645,2.032,4100.8,4099.8,2.43914337]
[1758764479845,18.72572355,4101.8,4100.1,2.4389649]
[1758764480090,0.2284,4101.6,4101.2,2.43830542]
[1758764480293,2.43819183,4101.4,4099.9,2.43904014]
[1758764480472,7.79575825,4101.3,4099.6,0.2496]
[1758764480776,7.79575825,4101.3,4099.0,6.7132197]
[1758764480777,0.792,4100.7,4099.3,2.43944088]
[1758764480978,3.792,4100.5,4100.0,2.43899781]
[1758764481279,0.792,4100.3,4099.9,2.43903553]
[1758764481576,0.792,4100.0,4099.9,2.43903553]
[1758764482600,0.792,4100.0,4099.8,2.43912679]
[1758764482768,0.792,4100.0,4099.1,0.6937]
[1758764482966,0.792,4100.0,4099.1,0.002]
[1758764483172,0.792,4099.8,4099.1,0.002]
[1758764483469,0.792,4099.5,4099.1,0.002]
[1758764483972,0.2284,4099.4,4099.3,2.43943585]
[1758764484608,0.792,4099.3,4099.2,2.4394857]
[1758764484796,8.455,4099.3,4099.2,2.4394857]
[1758764485691,8.455,4099.3,4099.1,0.002]
[1758764485692,3.792,4099.2,4099.0,0.0012197]
[1758764485880,6.2315599,4099.1,4099.0,0.0012197]
[1758764486079,4.4695,4099.1,4099.0,0.0012197]
[1758764486304,6.0524,4099.1,4099.0,0.0012197]
[1758764486496,10.7284,4099.1,4099.0,0.0012197]
[1758764486807,13.1679599,4099.1,4099.0,0.0012197]
[1758764487190,13.6170599,4099.1,4099.0,0.0012197]
[1758764487395,6.4599599,4099.1,4099.0,0.0012197]
[1758764487598,10.5,4099.1,4099.0,0.0012197]
[1758764487769,3.0,4099.1,4099.0,2.44083911]
[1758764487972,7.676,4099.1,4099.0,2.44083911]
[1758764488318,3.0,4099.1,4099.0,3.13253911]
[1758764488520,4.677,4099.1,4099.0,3.68976488]
[1758764488820,0.792,4099.7,4099.0,2.44083911]
[1758764489118,0.792,4099.5,4099.1,2.43953874]
[1758764489320,3.792,4099.5,4099.1,2.43953874]
[1758764489614,0.792,4099.3,4099.0,0.0012197]
[1758764489822,3.0,4099.1,4099.0,0.0012197]
[1758764490198,3.792,4099.1,4099.0,0.0012197]
[1758764491220,3.792,4099.1,4099.0,0.0032197]
[1758764492043,7.658,4099.1,4099.0,2.44283911]
[1758764492247,8.45,4099.1,4099.0,0.0032197]
[1758764492524,13.6150599,4099.1,4099.0,0.0032197]
[1758764493500,10.7264,4099.1,4099.0,0.0032197]
[1758764493927,13.1659599,4099.1,4099.0,0.0032197]
[1758764494237,13.6150599,4099.1,4099.0,0.0032197]
[1758764495541,13.6110599,4099.1,4099.0,0.0032197]
[1758764495690,6.9090599,4099.1,4099.0,0.0032197]
[1758764495889,13.1599599,4099.1,4099.0,0.0032197]
[1758764496990,10.492,4099.1,4099.0,0.0032197]
[1758764497218,13.3806599,4099.1,4099.0,0.0032197]
[1758764497425,13.6090599,4099.1,4099.0,0.0032197]
[1758764499542,13.1459599,4099.1,4099.0,0.0032197]
[1758764499951,13.5950599,4099.1,4099.0,0.0032197]
[1758764500119,13.1459599,4099.1,4099.0,0.0032197]
[1758764500518,6.2315599,4099.1,4099.0,0.0032197]
[1758764500756,12.9155599,4099.1,4099.0,0.0032197]
[1758764501104,12.9115599,4099.1,4099.0,0.0032197]
[1758764501305,12.9115599,4099.1,4093.7,1.0]
[1758764501306,1.462,4098.9,4093.7,1.0]
[1758764501541,1.462,4098.9,4096.5,0.2496]
[1758764501542,3.792,4097.9,4096.5,0.2496]
[1758764501728,0.792,4097.5,4096.6,0.4421]
[1758764501933,3.792,4097.3,4096.6,0.4421]
[1758764502134,0.1216,4096.6,4096.1,0.4538]
[1758764502441,4.706,4096.5,4096.4,2.44116785]
[1758764502638,4.705,4096.5,4096.1,0.6927]
[1758764502809,4.705,4096.5,4095.4,0.1216]
[1758764502810,0.1216,4096.2,4095.4,0.1216]
[1758764503006,0.1216,4096.2,4096.1,2.44134664]
[1758764503408,4.8216,4096.2,4095.7,0.2389]
[1758764503608,4.7,4096.2,4095.5,0.2389]
[1758764503969,0.1216,4095.5,4094.9,0.6927]
[1758764504264,0.792,4095.3,4094.8,0.2389]
[1758764504408,4.698,4095.2,4094.8,0.2389]
[1758764504610,0.792,4095.7,4094.9,0.2389]
[1758764504821,0.792,4095.7,4094.9,0.6927]
[1758764505021,3.0,4095.5,4095.1,2.44191852]
[1758764505222,5.033,4095.5,4095.1,0.6927]
[1758764505418,5.033,4095.5,4094.8,2.44207541]
[1758764505419,0.792,4095.4,4094.8,2.44207541]
[1758764505729,4.698,4095.3,4094.6,0.6927]
[1758764505954,4.698,4095.3,4093.9,0.02442658]
[1758764505955,5.03177759,4095.3,4093.9,0.02442658]
[1758764506259,5.03177759,4095.3,4093.5,2.08849862]
[1758764506260,3.0,4095.2,4094.3,0.6927]
[1758764506457,3.0,4095.2,4094.4,0.6927]
[1758764506861,0.792,4095.1,4094.4,0.2389]
[1758764507159,0.792,4094.9,4093.6,0.4538]
[1758764507361,0.792,4094.9,4093.5,2.08849862]
[1758764507362,0.792,4094.7,4093.5,2.32739862]
[1758764507522,6.724,4094.6,4093.5,2.32739862]
[1758764507719,0.792,4095.1,4093.6,0.6927]
[1758764508029,6.723,4095.0,4094.6,2.44219421]
[1758764508229,6.723,4095.0,4093.5,2.08849862]
[1758764508230,6.722,4094.9,4093.5,2.08849862]
[1758764508503,2.44103404,4096.7,4093.5,2.08849862]
[1758764508504,0.2279,4096.3,4093.7,2.44277792]
[1758764508760,2.212,4096.2,4095.4,2.44171353]
[1758764508921,0.2279,4096.3,4093.9,2.44265858]
[1758764509118,19.12139952,4096.9,4095.5,2.44164722]
[1758764509119,2.213,4096.2,4095.5,2.44164722]
[1758764509323,2.213,4096.1,4095.4,0.2389]
[1758764509629,6.719,4096.0,4095.5,2.4416583]
[1758764509962,0.2279,4096.8,4095.6,2.44163005]
[1758764510131,18.67529952,4096.9,4096.5,2.44110788]
[1758764510335,7.389,4096.8,4095.8,2.44147956]
[1758764510529,3.23304867,4096.6,4095.1,0.4538]
[1758764510730,3.11511131,4096.5,4095.4,2.44171096]
[1758764510955,3.792,4096.3,4095.1,0.4538]
[1758764511155,0.792,4096.3,4096.1,2.44129915]
[1758764511459,18.27662355,4096.9,4095.5,0.6927]
[1758764511664,7.506,4096.8,4096.0,2.44138899]
[1758764511852,0.792,4096.6,4095.5,0.6927]
[1758764512159,0.001,4095.7,4095.5,0.4538]
[1758764512400,4.677,4095.6,4095.5,2.8955043]
[1758764512598,4.677,4095.6,4095.5,3.1344043]
[1758764513095,0.001,4095.7,4095.6,2.44164469]
[1758764513263,0.001,4095.7,4095.6,3.69194959]
[1758764513477,0.001,4095.7,4095.6,3.71636603]
[1758764513662,2.034,4097.1,4095.6,1.27472134]
[1758764513912,3.804,4097.0,4096.4,2.44112227]
[1758764514062,2.459,4096.9,4096.0,0.6927]
[1758764514262,0.2279,4097.7,4096.1,0.6927]
[1758764514461,0.12095971,4097.9,4096.2,0.6927]
[1758764514462,4.667,4097.6,4096.2,0.6927]
[1758764514666,0.1216,4096.8,4096.7,2.44098908]
[1758764514918,0.1216,4096.8,4096.7,3.13368908]
[1758764515917,0.1633915,4098.0,4096.7,3.13368908]
[1758764515918,0.1633915,4098.0,4097.9,2.44027428]
[1758764516069,7.5373915,4098.0,4096.7,0.2389]
[1758764516275,3.792,4097.9,4097.4,2.4405531]
[1758764516584,0.2279,4097.8,4096.7,0.2389]
[1758764517166,0.792,4097.5,4096.5,2.44108882]
[1758764517413,0.792,4097.3,4096.1,0.4538]
[1758764517609,4.8849,4097.2,4096.7,2.44096961]
[1758764517910,0.2279,4097.1,4096.8,2.44092627]
[1758764518205,4.657,4097.2,4096.8,2.44090947]
[1758764518371,4.657,4097.2,4096.1,0.4538]
[1758764518372,0.2279,4097.1,4096.9,2.4408562]
[1758764518819,0.2279,4097.1,4096.0,0.2389]
[1758764518820,0.2279,4097.9,4095.1,2.034]
[1758764519115,0.792,4097.6,4096.4,2.44115954]
[1758764519312,1.0199,4097.6,4096.2,0.6927]
[1758764519477,1.0199,4097.6,4096.2,0.4538]
[1758764519664,2.034,4097.7,4097.6,2.44045294]
[1758764519885,3.0,4097.6,4097.4,2.4405672]
[1758764520087,3.0,4097.6,4097.5,2.4405125]
[1758764520742,6.682,4097.7,4097.6,2.44045294]
[1758764520903,0.1633915,4098.0,4097.9,2.44027428]
[1758764520904,2.1973915,4098.0,4097.9,2.44027428]
[1758764521307,4.641,4098.3,4097.9,0.6598]
[1758764521504,4.641,4098.2,4097.5,0.2288]
[1758764521704,0.235,4099.1,4097.6,0.431]
[1758764521918,2.43978479,4098.8,4097.6,0.431]
[1758764522194,0.235,4098.7,4098.3,2.43998725]
[1758764522406,0.39867597,4099.4,4097.8,0.02440333]
[1758764522703,2.034,4099.3,4099.2,2.43950039]
[1758764522892,4.64,4099.4,4098.5,2.43990674]
[1758764523221,4.64,4099.4,4098.2,2.44009522]
[1758764523222,4.64,4099.3,4098.4,0.2288]
[1758764523427,3.0,4099.2,4098.4,0.2288]
[1758764523592,3.0,4099.2,4098.4,2.66875376]
[1758764523989,3.0,4099.7,4098.7,2.43975317]
[1758764524226,3.0,4099.5,4098.6,0.2288]
[1758764524390,0.235,4099.8,4098.6,0.2288]
[1758764524591,6.668,4099.7,4098.6,0.2288]
[1758764524834,2.43942424,4099.4,4098.6,0.2288]
[1758764525035,0.792,4099.2,4096.3,2.44122744]
[1758764525233,5.877,4099.1,4098.1,2.44011153]
[1758764525394,5.43963033,4099.0,4098.1,2.44011153]
[1758764525594,5.43963033,4099.0,4097.7,0.6598]
[1758764525595,0.792,4098.9,4097.7,0.6598]
[1758764525837,2.44004374,4098.3,4097.2,0.6598]
[1758764526036,3.0,4098.1,4097.3,2.44063163]
[1758764526199,3.0,4098.1,4097.2,0.6598]
[1758764526536,0.792,4097.6,4096.5,2.44105986]
[1758764526830,2.4406853,4097.3,4096.3,2.44121045]
[1758764526992,2.268,4097.2,4095.8,2.67032481]
[1758764527192,2.268,4097.2,4095.9,2.44145621]
[1758764527418,2.268,4097.2,4095.8,0.2288]
[1758764527624,2.268,4097.2,4095.6,0.2288]
[1758764527625,25.61943697,4097.1,4095.6,0.2288]
[1758764527949,25.61943697,4097.1,4095.4,0.431]
[1758764527950,2.44121878,4096.4,4095.4,2.87276252]
[1758764528146,2.44121878,4096.4,4095.4,2.87271246]
[1758764528147,7.0682447,4096.3,4095.4,2.87271246]
[1758764528347,3.0,4096.2,4094.8,0.2288]
[1758764528523,0.235,4096.2,4094.8,0.2288]
[1758764528853,6.658,4096.1,4095.1,2.44192587]
[1758764529156,4.625,4096.0,4095.2,0.6598]
[1758764529346,4.625,4095.9,4095.3,2.44182355]
[1758764529654,4.625,4095.9,4095.2,0.6598]
[1758764530233,0.235,4096.7,4095.3,0.68421823]
[1758764530545,6.65,4096.6,4095.8,2.44152212]
[1758764530753,4.027,4096.5,4095.0,0.2288]
[1758764530928,0.792,4096.3,4095.0,0.2288]
[1758764531267,0.235,4096.2,4095.6,2.44164229]
[1758764531626,0.235,4096.2,4095.0,0.2288]
[1758764531627,0.792,4096.4,4095.2,0.431]
[1758764531867,4.615,4096.1,4095.2,0.431]
[1758764532159,4.615,4096.1,4095.0,2.44199091]
[1758764532160,7.05639955,4096.1,4095.0,0.2426]
[1758764532335,7.05639955,4096.1,4095.0,2.68459847]
[1758764532536,4.615,4096.1,4095.1,2.4419428]
[1758764532762,4.615,4096.1,4095.3,2.44177892]
[1758764532959,7.05634759,4096.1,4095.0,0.55596985]
[1758764533139,4.615,4096.1,4095.3,2.4417758]
[1758764533334,4.615,4096.1,4095.5,2.44169555]
[1758764533738,4.615,4096.1,4095.6,2.44163971]
[1758764534057,0.2442,4096.0,4095.1,3.11363292]
[1758764534260,0.2442,4096.0,4095.1,3.11364035]
[1758764534467,4.0362,4096.0,4095.0,0.002]
[1758764534673,0.792,4095.5,4095.0,0.002]
[1758764534892,9.07677836,4095.4,4095.0,0.002]
[1758764535061,0.2442,4095.4,4095.0,0.002]
[1758764535396,0.792,4093.5,4091.4,1.25449945]
[1758764535589,3.23591221,4091.8,4090.0,1.0093]
[1758764535888,10.541,4091.8,4090.0,1.0093]
[1758764536091,5.7522,4091.8,4090.7,0.2426]
[1758764536262,0.2442,4091.8,4090.7,0.2426]
[1758764536467,7.715,4091.8,4090.7,0.2426]
[1758764536813,7.9592,4091.8,4090.8,0.02444509]
[1758764536951,7.9592,4091.8,4090.8,2.44445421]
[1758764537151,3.0,4091.8,4090.2,0.1216]
[1758764537361,4.307,4091.8,4091.0,0.2426]
[1758764537566,4.727,4092.3,4091.9,2.44383207]
[1758764537797,4.727,4092.4,4091.9,0.2426]
[1758764537999,4.727,4092.4,4092.3,2.44361361]
[1758764538297,0.48146762,4092.4,4092.3,2.44361361]
[1758764538631,0.49513355,4093.1,4092.3,1.16044064]
[1758764538802,2.034,4093.3,4092.3,0.6717]
[1758764538968,2.034,4093.3,4092.3,0.2426]
[1758764539168,2.034,4093.3,4093.2,2.44307632]
[1758764539370,0.50007516,4093.5,4092.5,2.44343818]
[1758764539569,22.17351622,4093.9,4092.7,2.44337478]
[1758764539570,4.724,4093.4,4092.7,2.44337478]
[1758764539891,22.17351622,4093.3,4091.8,0.4291]
[1758764540071,22.17351622,4093.3,4091.7,0.0025]
[1758764540072,3.2442,4093.2,4091.7,0.0025]
[1758764540272,0.792,4093.1,4091.7,0.0025]
[1758764540468,3.0,4093.2,4091.8,0.69613912]
[1758764540696,4.722,4093.4,4092.0,2.44379276]
[1758764540897,4.722,4093.4,4092.9,2.44322909]
[1758764541097,3.0,4093.2,4091.8,2.44391221]
[1758764541406,4.721,4093.1,4091.9,2.44383843]
[1758764541606,3.0,4093.0,4091.8,0.2426]
[1758764541772,3.0,4093.0,4092.6,2.44343142]
[1758764541977,3.0,4093.0,4092.9,2.44325539]
[1758764542196,4.718,4093.3,4092.9,0.2426]
[1758764542415,0.2442,4094.0,4093.5,2.44287586]
[1758764542730,6.752,4093.9,4092.9,0.2426]
[1758764542933,3.0,4093.8,4092.9,0.2426]
[1758764543116,21.71671622,4094.3,4092.9,0.2426]
[1758764543316,4.714,4094.2,4093.7,2.44276492]
[1758764543517,3.0,4094.1,4093.0,2.44319569]
[1758764543724,6.749,4094.2,4093.7,2.44274627]
[1758764543918,21.71671622,4094.3,4094.0,2.44259892]
[1758764544096,4.711,4094.2,4093.8,2.4426804]
[1758764544301,0.49198078,4094.5,4093.9,2.44264623]
[1758764544513,6.746,4094.4,4093.6,2.44282742]
[1758764544717,6.746,4094.4,4093.7,2.44276098]
[1758764544914,3.0,4094.3,4093.3,0.2426]
[1758764545132,3.0,4094.3,4093.8,2.44269562]
[1758764545337,3.701,4094.3,4093.3,0.2426]
[1758764545634,3.2442,4094.3,4093.9,2.44260613]
[1758764545834,0.2442,4094.3,4093.3,0.2426]
[1758764546150,3.0,4094.1,4093.9,2.44265426]
[1758764546638,3.0,4094.1,4093.3,0.57850201]
[1758764546639,3.0,4094.1,4094.0,2.44259892]
[1758764547001,2.035,4094.5,4094.4,2.44235171]
[1758764547202,4.695,4094.5,4093.6,0.2426]
[1758764547427,0.2442,4095.2,4093.6,0.2426]
[1758764547740,22.17351622,4095.4,4093.6,0.2426]
[1758764547741,0.1216,4094.3,4094.2,2.4424796]
[1758764547900,2.035,4095.3,4094.4,2.44236029]
[1758764548104,4.692,4095.2,4095.0,2.4419564]
[1758764548433,4.692,4095.1,4094.7,2.44213356]
[1758764548670,4.692,4095.1,4094.1,0.2426]
[1758764548817,0.1216,4094.5,4094.4,2.44236029]
[1758764549204,0.1216,4094.5,4094.4,2.68496029]
[1758764549514,0.1216,4094.5,4094.4,3.11406029]
[1758764550751,0.1216,4094.5,4094.4,3.13848389]
[1758764550956,0.1216,4094.5,4094.4,3.11406029]
[1758764551641,0.1216,4094.5,4093.8,2.44271825]
[1758764551859,0.1216,4094.5,4094.4,2.44236029]
[1758764552344,0.1216,4094.5,4094.4,3.11406029]
[1758764552527,0.2442,4096.6,4096.3,2.44122692]
[1758764552839,0.001,4095.4,4095.3,2.44182355]